[Event "Kvika Banki League Iceland 2022-23"]
[Site "Reykjavik"]
[Date "2022.10.14"]
[Round "2.1"]
[White "Lomasov, Semyon"]
[Black "Heimisson, Hilmir Freyr"]
[Result "1-0"]
[ECO "C02"]
[WhiteElo "2541"]
[BlackElo "2293"]
[Annotator "TA"]
[PlyCount "73"]
[EventDate "2022.10.13"]
[EventType "team-tourn"]
[EventCountry "ISL"]
[SourceTitle "playchess.com"]
[Source "ChessBase"]
[SourceQuality "1"]
[TimeControl "5400+30"]

{[%evp 12,73,15,9,8,10,10,15,30,24,27,26,31,20,30,21,87,65,84,31,67,57,143,132,177,187,167,159,151,147,367,404,385,385,381,371,344,289,278,273,281,254,445,439,547,558,700,700,680,665,635,531,1098,1151,1148,1132,1185,1178,1185,1143,1433,1419,1333,933]} 1. e4 {[%emt 0:00:07]} e6 {[%emt 0:00:05]} 2. d4 {[%emt 0:00:17]} d5 {[%emt 0:00:05]} 3. e5 {[%emt 0:00:05]} c5 {[%emt 0:00:03]} 4. c3 {[%emt 0:00:04]} Qb6 {[%emt 0:00:58]} 5. Nf3 {[%emt 0:00:37]} Bd7 {[%emt 0:00:22]} 6. Be2 {[%emt 0:03:51]} Bb5 {[%emt 0:00:25]} 7. Bxb5+ {[%emt 0:00:17]} Qxb5 {[%emt 0:00:07] C02: French: Advance Variation.} 8. Na3 {[%emt 0:00:02]} Qd7 {[%emt 0:05:52]} 9. Nc2 {[%emt 0:04:58]} Nc6 {[%emt 0:06:32] The position is equal.} 10. O-O {[%emt 0:01:25] [#]} Rc8 $146 {[%emt 0:03:32]} ({Predecessor:} 10... cxd4 11. cxd4 Nge7 12. h4 h5 13. Qd3 Nf5 14. Bd2 Be7 15. g3 Rc8 16. Rfe1 a6 {1-0 (52) Jones,G (2666)-Di Benedetto,E (2407) Montesilvano 2022}) 11. Bd2 {[%emt 0:03:22]} cxd4 {[%emt 0:11:47]} 12. cxd4 {[%emt 0:00:15]} Nge7 {[%emt 0:01:35]} 13. b4 {[%emt 0:01:40][%cal Bb2b4,Bb4b5][%mdl 32]} Qc7 {[%emt 0:06:56]} (13... Nf5 $11) 14. Qe2 $16 {[%emt 0:23:12]} Ng6 {[%emt 0:24:15]} 15. Rac1 {[%emt 0:20:04]} (15. Rfc1 $16) 15... Qb6 {[%emt 0:03:02]} 16. h4 {[%emt 0:05:01][%cal Bh2h4,Bh4h5][%mdl 32]} (16. b5 $5 {[%cal Rb5c6]} Nce7 17. Na1 $16) 16... Be7 {[%emt 0:04:09]} (16... Nxb4 $2 17. Nxb4 Rxc1 18. Rxc1 $18) (16... h5 $14) 17. b5 {[%emt 0:08:47]} Na5 {[%emt 0:02:14]} 18. h5 {[%emt 0:00:01]} Nf8 {[%emt 0:03:17]} 19. Ne3 {[%emt 0:02:54] Prevents Nc4.} Ra8 {[%emt 0:06:39]} 20. Rc2 $36 {[%emt 0:05:20][%mdl 2048] Keeping Black busy. White is more active.} Nd7 $2 {[%emt 0:00:58] A mistake that costs the game.} (20... a6 $16 21. bxa6 Rxa6) 21. Rfc1 $18 {[%emt 0:00:51][%cal Bf1c1,Bc1c7,Bc7b7,Bb7b8][%mdl 32] [#] Threatens to win with Rc8+.} O-O {[%emt 0:02:37]} 22. Rc7 {[%emt 0:03:22]} Rfd8 {[%emt 0:01:32][%cal Oa5c4]} 23. Bxa5 {[%emt 0:00:52]} Qxa5 {[%emt 0:00:06]} 24. Rxb7 {[%emt 0:00:03]} Rab8 {[%emt 0:01:15]} 25. Rcc7 {[%emt 0:00:09]} Rxb7 {[%emt 0:03:48]} 26. Rxb7 {[%emt 0:00:02][%cal Oe3d5] Nxd5! is the strong threat.} Qa3 $2 {[%emt 0:06:29] [#]} (26... h6 {is a better defense.} 27. Qc2 Bb4) 27. Qc2 {[%emt 0:04:19] White is clearly winning.} Nb6 {[%emt 0:00:39]} 28. Qc7 {[%emt 0:00:54][%csl LRa7,LRe7]} Rd7 {[%emt 0:01:05]} 29. Rb8+ {[%emt 0:02:04]} Bf8 {[%emt 0:00:08]} 30. Qc5 {[%emt 0:00:08]} Qxc5 {[%emt 0:02:48]} 31. dxc5 {[%emt 0:00:01][%cal Bd4c5,Bc5c6,Bc6c7][%mdl 32]} Nc4 {[%emt 0:01:04]} 32. c6 {[%emt 0:00:56]} Rc7 {[%emt 0:00:13]} 33. Nxc4 {[%emt 0:00:32]} dxc4 {[%emt 0:00:03]} 34. Nd4 {[%emt 0:00:10]} c3 {[%emt 0:01:43]} 35. Kf1 {[%emt 0:00:09]} f6 {[%emt 0:01:00]} 36. Ke2 {[%emt 0:00:12]} Re7 {[%emt 0:00:29]} 37. c7 {[%emt 0:00:46] Weighted Error Value: White=0.06 (flawless) /Black=0.52} 1-0

[Event "Kvika Banki League Iceland 2022-23"]
[Site "Reykjavik"]
[Date "2022.10.14"]
[Round "2.2"]
[White "Jonsson, Bjorgvin"]
[Black "Danielsen, Henrik"]
[Result "0-1"]
[ECO "C42"]
[WhiteElo "2331"]
[BlackElo "2521"]
[Annotator "TA"]
[PlyCount "77"]
[EventDate "2022.10.13"]
[EventType "team-tourn"]
[EventCountry "ISL"]
[SourceTitle "playchess.com"]
[Source "ChessBase"]
[SourceQuality "1"]
[TimeControl "5400+30"]

{[%evp 25,77,39,35,18,16,32,70,44,44,53,56,40,38,8,15,11,13,0,0,-4,0,-33,-25,-25,-24,-35,0,-61,-45,-77,-76,-76,-77,-78,-78,-84,-83,-93,-85,-91,-69,-121,-102,-118,-114,-130,-130,-130,-125,-124,-127,-518,-507,-500]} 1. e4 {[%emt 0:00:05]} e5 {[%emt 0:03:24]} 2. Nf3 {[%emt 0:00:13]} Nf6 {[%emt 0:00:13]} 3. Nxe5 {[%emt 0:10:19]} d6 {[%emt 0:00:17]} 4. Nf3 {[%emt 0:00:03]} Nxe4 {[%emt 0:00:12]} 5. d4 {[%emt 0:00:10]} d5 {[%emt 0:00:58]} 6. Bd3 {[%emt 0:00:03]} Nc6 {[%emt 0:01:11]} 7. O-O {[%emt 0:02:03]} Be7 {[%emt 0:00:07]} 8. c4 {[%emt 0:01:50]} Nb4 {[%emt 0:00:14]} 9. Be2 {[%emt 0:04:29]} O-O {[%emt 0:01:28]} 10. Nc3 {[%emt 0:02:08]} Bf5 {[%emt 0:01:37]} 11. a3 {[%emt 0:03:11]} Nxc3 {[%emt 0:00:09]} 12. bxc3 {[%emt 0:00:04]} Nc6 {[%emt 0:00:10]} 13. Re1 {[%emt 0:02:38]} Re8 {[%emt 0:03:21]} 14. Bf4 {[%emt 0:02:24] C42: Petroff Defence: 3 Nxe5 and unusual White 3rd moves.} Rc8 {[%emt 0:02:26]} 15. Qa4 {[%emt 0:08:22] has lost popularity (15.c5).} Be4 {[%emt 0:17:27]} 16. Nd2 {[%emt 0:01:51] White is slightly better.} Bg5 {[%emt 0:04:59]} 17. Nxe4 {[%emt 0:06:58]} dxe4 {[%emt 0:05:06]} 18. Bxg5 {[%emt 0:01:47]} Qxg5 {[%emt 0:00:03]} 19. Qb5 {[%emt 0:01:36]} (19. c5 {seems wilder.} e3 20. f3 Ne7 21. Bc4) 19... Qxb5 {[%emt 0:01:06]} 20. cxb5 {[%emt 0:02:40]} Ne7 {[%emt 0:00:38] [#]} 21. Bc4 $146 {[%emt 0:03:24]} ({Predecessor:} 21. f3 Nd5 22. fxe4 Nxc3 23. Bd3 c5 24. bxc6 Rxc6 25. Rac1 Rec8 26. Rc2 Kf8 27. d5 {½-½ (39) Verseghi,A (2319)-Nazarbekov,G (2292) ICCF email 2004}) 21... Nf5 {[%emt 0:00:28]} 22. Bb3 {[%emt 0:04:44]} g6 {[%emt 0:11:36]} 23. Ra2 {[%emt 0:08:23]} (23. g4 $5 {[%cal Rg4f5]} Nd6 24. a4 $11) 23... Kf8 {[%emt 0:05:31]} 24. Rd2 {[%emt 0:05:20]} Re7 {[%emt 0:01:58]} 25. a4 {[%emt 0:05:43]} c5 {[%emt 0:02:53]} (25... c6 $5 {[%cal Rc6b5]} 26. bxc6 Rxc6 $11) 26. bxc6 {[%emt 0:03:14]} (26. dxc5 $1 $11 Rxc5 27. c4) 26... Rxc6 $15 {[%emt 0:06:10]} 27. c4 {[%emt 0:01:08]} Rb6 {[%emt 0:00:20]} 28. Ba2 {[%emt 0:01:39] [#]} Rb4 $1 {[%emt 0:00:01] Black is more active.} 29. d5 {[%emt 0:03:27] [#]} b6 $1 {[%emt 0:02:49]} 30. a5 {[%emt 0:00:15]} Nd6 {[%emt 0:00:02]} 31. axb6 {[%emt 0:01:57]} axb6 {[%emt 0:00:01]} 32. Rc2 {[%emt 0:01:26]} Rc7 {[%emt 0:00:30]} 33. Rec1 {[%emt 0:00:42]} (33. g4 $15) 33... Rc5 {[%emt 0:00:09]} 34. Kf1 {[%emt 0:00:21]} Ra5 {[%emt 0:03:25]} 35. Ke2 {[%emt 0:02:22]} Ra3 {[%emt 0:00:14]} 36. Rd2 {[%emt 0:02:14]} Rba4 {[%emt 0:01:00]} 37. Bb1 {[%emt 0:02:12]} Ra1 {[%emt 0:01:58]} ({Inferior is} 37... Rxc4 38. Rxc4 Nxc4 39. Rd4 $15) 38. Rdc2 $2 {[%emt 0:01:13][%mdl 8192]} (38. Rb2 $17 {is more resistant.}) 38... Rb4 $19 {[%emt 0:00:28]} 39. Ba2 {[%emt 0:00:13] Weighted Error Value: White=0.37/Black=0.04 (flawless)} 0-1

[Event "Kvika Banki League Iceland 2022-23"]
[Site "Reykjavik"]
[Date "2022.10.14"]
[Round "2.3"]
[White "Ahlander, Bjorn"]
[Black "Jensson, Einar Hjalti"]
[Result "1/2-1/2"]
[ECO "D30"]
[WhiteElo "2406"]
[BlackElo "2331"]
[Annotator "TA"]
[PlyCount "104"]
[EventDate "2022.10.13"]
[EventType "team-tourn"]
[EventCountry "ISL"]
[SourceTitle "playchess.com"]
[Source "ChessBase"]
[SourceQuality "1"]
[TimeControl "5400+30"]

{[%evp 9,104,8,20,29,20,29,25,22,26,0,17,8,14,0,0,4,-17,-44,-19,-52,-40,-52,-45,-49,-4,-2,0,0,0,0,0,-4,22,7,8,0,27,0,0,0,35,7,10,14,19,0,0,0,0,0,10,0,0,0,9,9,13,10,13,13,64,60,66,0,0,0,0,0,0,0,0,0,0,-5,-5,-14,-11,-14,-6,-7,-5,-5,0,0,0,0,0,-8,-5,-5,-5,-5,-5,-5,-5,-5,0]} 1. d4 {[%emt 0:00:04]} d5 {[%emt 0:00:05]} 2. c4 {[%emt 0:00:19]} c6 {[%emt 0:00:03]} 3. Nf3 {[%emt 0:00:30]} e6 {[%emt 0:00:10]} 4. Qc2 {[%emt 0:00:47]} Nf6 {[%emt 0:00:21]} 5. g3 {[%emt 0:00:19]} b6 {[%emt 0:03:00]} 6. Bg2 {[%emt 0:00:25] D30: Queen's Gambit Declined: Systems without Nc3.} Bb7 {[%emt 0:00:03]} 7. O-O {[%emt 0:00:50]} Nbd7 {[%emt 0:00:02]} 8. Rd1 {[%emt 0:02:20] White has an edge.} Rc8 {[%emt 0:01:30] [#]} 9. Bg5 $146 {[%emt 0:11:37][%cal Oe2e4]} ({Predecessor:} 9. Nc3 Bb4 10. Ne5 Nxe5 11. dxe5 Nd7 12. cxd5 cxd5 13. e4 dxe4 14. Bxe4 Bxe4 15. Qxe4 Bxc3 16. bxc3 {0-1 (31) Wojtkiewicz,A (2563)-Blatny,P (2512) Philadelphia 2000}) 9... h6 {[%emt 0:01:33]} 10. Bxf6 {[%emt 0:00:16]} Nxf6 {[%emt 0:00:09]} 11. Ne5 {[%emt 0:02:11]} Bd6 {[%emt 0:02:49]} 12. Nc3 {[%emt 0:01:12]} O-O {[%emt 0:03:11]} 13. f4 {[%emt 0:07:27]} Qe7 {[%emt 0:03:19]} (13... c5 $5 {[%cal Rc5d4]}) 14. e3 {[%emt 0:04:35]} c5 {[%emt 0:04:12]} 15. cxd5 {[%emt 0:10:02]} cxd4 {[%emt 0:15:46]} 16. exd4 {[%emt 0:02:12] [#] Strongly threatening dxe6.} Bxd5 {[%emt 0:12:14]} ({Don't take} 16... exd5 17. Qa4 $14) (16... Nxd5 {with more complications.} 17. Nxd5 Bxd5 18. Qe2 Qb7) 17. Nxd5 {[%emt 0:14:30] Pair of Knights!} Rxc2 {[%emt 0:08:11]} 18. Nxe7+ {[%emt 0:00:04]} Bxe7 {[%emt 0:00:06]} 19. Nc6 {[%emt 0:00:52]} Re8 {[%emt 0:00:46]} 20. Rab1 {[%emt 0:02:49]} Nd5 {[%emt 0:05:53]} 21. Rdc1 {[%emt 0:01:25]} Rd2 {[%emt 0:04:23]} 22. Rd1 {[%emt 0:01:22]} Rc2 {[%emt 0:02:29]} 23. Rdc1 {[%emt 0:00:30]} Rd2 {[%emt 0:00:11]} 24. Rd1 {[%emt 0:14:43]} Rc2 {[%emt 0:06:44]} 25. Rbc1 {[%emt 0:02:56]} (25. Nxa7 $5 {[%cal Rg2e4]} Bf6 26. Nb5 $11) 25... Rxc1 {[%emt 0:10:30]} (25... Rxb2 $2 26. Bxd5 exd5 27. Re1 $18) 26. Rxc1 {[%emt 0:00:03]} Bf6 {[%emt 0:00:53]} 27. Kf2 {[%emt 0:03:19]} Ne7 $1 {[%emt 0:02:07]} 28. Nxe7+ {[%emt 0:09:47]} Rxe7 $11 {[%emt 0:00:08][%mdl 4096] Endgame KRB-KRB} 29. Ke3 {[%emt 0:01:03]} g6 {[%emt 0:05:40]} 30. Bc6 {[%emt 0:02:16]} Rc7 {[%emt 0:00:44]} 31. b4 {[%emt 0:00:02]} b5 {[%emt 0:03:53]} 32. Ke4 {[%emt 0:03:03]} Kf8 {[%emt 0:03:51]} 33. d5 {[%emt 0:00:31]} Ke7 {[%emt 0:00:21]} 34. Rd1 {[%emt 0:01:19] [#] Hoping for d6+.} exd5+ {[%emt 0:00:51]} (34... Kf8 $11) 35. Kxd5 $14 {[%emt 0:00:05] Threatens to win with Re1+.} Bc3 {[%emt 0:00:06] Against Re1+} 36. Kc5 {[%emt 0:01:11]} ({Of course not} 36. Bxb5 Bxb4 37. Bc6 Rc8 $11) (36. a3 $14) 36... Bxb4+ $11 {[%emt 0:00:23] The position is equal.} 37. Kxb5 {[%emt 0:00:23]} Bd6 {[%emt 0:00:31]} 38. a4 {[%emt 0:01:01]} g5 {[%emt 0:00:32]} 39. fxg5 {[%emt 0:00:17]} hxg5 {[%emt 0:00:01]} 40. a5 {[%emt 0:00:24]} f5 {[%emt 0:00:20]} 41. a6 {[%emt 0:00:30]} Ke6 {[%emt 0:01:17]} 42. Re1+ {[%emt 0:00:18]} Be5 {[%emt 0:01:04]} 43. Kc5 {[%emt 0:00:19]} g4 {[%emt 0:00:27]} 44. Re2 {[%emt 0:00:05]} Rc8 {[%emt 0:00:08]} 45. Rd2 {[%emt 0:00:41]} f4 {[%emt 0:00:26]} 46. gxf4 {[%emt 0:00:40]} Bxf4 {[%emt 0:00:01]} 47. Re2+ {[%emt 0:01:22]} Kf6 {[%emt 0:00:11]} 48. Kd5 {[%emt 0:00:59]} Rd8+ {[%emt 0:00:09]} 49. Ke4 {[%emt 0:00:30]} Rd2 {[%emt 0:00:49]} 50. Rxd2 {[%emt 0:00:25]} Bxd2 {[%emt 0:00:00]} 51. Bd7 {[%emt 0:00:25]} Kg5 {[%emt 0:00:04]} 52. h3 {[%emt 0:00:23]} gxh3 {[%emt 0:00:15] Weighted Error Value: White=0.07 (flawless) /Black=0.06 (flawless)} 1/2-1/2

[Event "Kvika Banki League Iceland 2022-23"]
[Site "Reykjavik"]
[Date "2022.10.14"]
[Round "2.4"]
[White "Gislason, Gudmundur"]
[Black "Gunnarsson, Arnar"]
[Result "0-1"]
[ECO "B07"]
[WhiteElo "2293"]
[BlackElo "2397"]
[Annotator "TA"]
[PlyCount "106"]
[EventDate "2022.10.13"]
[EventType "team-tourn"]
[EventCountry "ISL"]
[SourceTitle "playchess.com"]
[Source "ChessBase"]
[SourceQuality "1"]
[TimeControl "5400+30"]

{[%evp 16,106,30,22,16,-14,31,-14,-14,-12,-6,-8,-2,-18,-15,-24,-10,-61,-45,-42,6,-13,0,0,12,-106,-11,-56,0,-8,0,-44,0,-112,-97,-94,-97,-111,-54,-49,-57,-59,-65,-55,-66,-80,-59,-42,-35,-25,-22,-53,0,0,0,0,0,0,103,102,102,0,0,0,0,0,0,-275,0,-18,0,-4,0,0,0,0,0,0,0,0,0,0,0,0,0,0,0,0,0,0,0,-29991,-29992]} 1. d4 {[%emt 0:00:19]} Nf6 {[%emt 0:00:20]} 2. Nf3 {[%emt 0:00:09]} g6 {[%emt 0:00:35]} 3. g3 {[%emt 0:00:08]} Bg7 {[%emt 0:00:34]} 4. Bg2 {[%emt 0:00:08]} O-O {[%emt 0:04:05]} 5. O-O {[%emt 0:00:08]} d6 {[%emt 0:00:59]} 6. Re1 {[%emt 0:03:10]} Nbd7 {[%emt 0:11:58]} 7. e4 {[%emt 0:02:42]} e5 {[%emt 0:01:20]} 8. h3 {[%emt 0:03:36]} Re8 {[%emt 0:06:34]} 9. Nc3 {[%emt 0:05:27]} c6 {[%emt 0:00:41] B07: Pirc Defence: Miscellaneous Systems.} 10. Be3 {[%emt 0:03:02]} Qc7 {[%emt 0:00:56]} 11. Qd2 {[%emt 0:00:36]} b5 {[%emt 0:11:25][%cal Bb7b5,Bb5b4][%mdl 32] The position is equal.} 12. a3 {[%emt 0:00:56]} Bb7 {[%emt 0:02:53] [#]} 13. Bh6 $146 {[%emt 0:10:22]} ({Predecessor:} 13. Rad1 Nb6 14. b3 Nbd7 15. dxe5 dxe5 16. Bg5 Nc5 17. Qd6 Qxd6 18. Rxd6 Ne6 19. Bc1 {½-½ (45) Chemin,J (2296)-Valerga,D (2499) Buenos Aires 2005}) 13... a5 {[%emt 0:10:36]} 14. Bxg7 {[%emt 0:02:31]} Kxg7 {[%emt 0:00:06]} 15. b3 {[%emt 0:20:06]} Nb6 {[%emt 0:10:47]} 16. a4 {[%emt 0:10:15]} (16. Qe3 $11) 16... b4 $15 {[%emt 0:08:51]} 17. Nd1 {[%emt 0:00:21]} Nbd7 {[%emt 0:06:13]} (17... c5 $15 {might be stronger.} 18. d5 c4) 18. Nb2 {[%emt 0:00:26]} Ba6 {[%emt 0:01:05]} 19. Rad1 {[%emt 0:00:28]} Rad8 {[%emt 0:00:51]} 20. Nh4 {[%emt 0:05:25] [#]} (20. c4 $11 {keeps the balance.}) 20... h6 {[%emt 0:01:02]} ({Better is} 20... exd4 $1 $17 {next ...c5 is good for Black.} 21. Qxd4 d5 22. exd5 cxd5) 21. c3 {[%emt 0:03:28]} Rb8 {[%emt 0:02:36]} (21... d5 $15 {feels stronger.} 22. exd5 cxd5 23. dxe5 Nxe5 24. cxb4 axb4) 22. c4 $11 {[%emt 0:03:17]} Rbd8 {[%emt 0:00:54]} 23. Kh2 {[%emt 0:01:49]} Qb6 {[%emt 0:00:29]} 24. d5 {[%emt 0:12:28]} (24. Nf3 $11) 24... cxd5 $17 {[%emt 0:01:04]} 25. exd5 {[%emt 0:00:09]} Nc5 {[%emt 0:00:24]} 26. Re3 {[%emt 0:00:46]} Re7 {[%emt 0:05:12] Black is more active.} (26... Bc8 $17 {Strongly threatening ...g5.} 27. Rde1 g5) 27. Rde1 $15 {[%emt 0:02:46]} Rde8 {[%emt 0:01:23]} 28. f4 {[%emt 0:05:46]} Qd8 {[%emt 0:00:59]} 29. fxe5 {[%emt 0:00:32]} Rxe5 {[%emt 0:00:32]} 30. Rxe5 {[%emt 0:00:07]} Rxe5 {[%emt 0:00:55]} 31. Rxe5 {[%emt 0:00:06]} dxe5 {[%emt 0:00:07]} 32. Qe3 {[%emt 0:01:00][%csl LRc5,LRe5]} Nfd7 {[%emt 0:00:09]} 33. Nf3 {[%emt 0:00:45] Inhibits Qg5.} Qf6 {[%emt 0:03:35]} (33... Qe7 $15) 34. Nd3 $11 {[%emt 0:01:04]} Nxd3 {[%emt 0:01:45]} 35. Qxd3 {[%emt 0:00:14]} Qd6 {[%emt 0:00:31]} 36. Qe3 {[%emt 0:00:25]} f5 {[%emt 0:00:42]} (36... Qc5 $11 37. Qe1 f5) 37. Qa7 $16 {[%emt 0:00:43][%cal Oc4c5] Black must now prevent c5!} Kf6 {[%emt 0:00:08]} 38. Qa8 {[%emt 0:00:29]} (38. h4 $16) 38... Nb8 $1 $11 {[%emt 0:03:37]} 39. c5 {[%emt 0:00:21]} Qc7 {[%emt 0:00:04]} 40. c6 {[%emt 0:01:50]} Bd3 {[%emt 0:00:18]} 41. Nd2 $2 {[%emt 0:00:33][%mdl 8192]} (41. Ne1 $11 {and White has nothing to worry.} e4 42. Nxd3 exd3 43. Bf3) 41... Ke7 $2 {[%emt 0:00:40]} ({Black should try} 41... e4 $19 {And now ...Ke5 would win.} 42. d6 Qxd6 43. Qxa5 Nxc6) 42. Bf1 $1 {[%emt 0:00:52]} Bxf1 {[%emt 0:00:19]} 43. Nxf1 {[%emt 0:00:07][%mdl 4096] Endgame KQN-KQN} Kd6 {[%emt 0:01:49]} 44. Ne3 {[%emt 0:00:16]} f4 {[%emt 0:00:22]} 45. Nc4+ {[%emt 0:01:16]} ({Don't play} 45. gxf4 exf4 46. Nc4+ Kxd5 $17) 45... Kxd5 {[%emt 0:00:16]} 46. Nb6+ $1 {[%emt 0:01:08]} Ke6 {[%emt 0:00:47]} 47. Qxa5 {[%emt 0:00:14]} Qxc6 {[%emt 0:00:18] aiming for ...Qc2+.} 48. Nc4 {[%emt 0:00:13]} Qe4 {[%emt 0:01:21]} 49. Qxb4 {[%emt 0:00:41] Threatens to win with Qd6+.} Qe2+ {[%emt 0:00:25]} 50. Kg1 {[%emt 0:00:12]} Qd1+ {[%emt 0:01:20]} 51. Kf2 {[%emt 0:00:10]} Qd4+ {[%emt 0:00:16]} 52. Ke2 {[%emt 0:00:19]} Nc6 {[%emt 0:00:16]} 53. gxf4 $2 {[%emt 0:00:53][%mdl 8192] [#]} Nxb4 {[%emt 0:00:08] Weighted Error Value: White=0.44/Black=0.21 (precise)} 0-1

[Event "Kvika Banki League Iceland 2022-23"]
[Site "Reykjavik"]
[Date "2022.10.14"]
[Round "2.5"]
[White "Hansen, Soren Bech"]
[Black "Briem, Benedikt"]
[Result "1-0"]
[ECO "B52"]
[WhiteElo "2275"]
[BlackElo "2208"]
[Annotator "TA"]
[PlyCount "67"]
[EventDate "2022.10.13"]
[EventType "team-tourn"]
[EventCountry "ISL"]
[SourceTitle "playchess.com"]
[Source "ChessBase"]
[SourceQuality "1"]
[TimeControl "5400+30"]

{[%evp 21,67,0,0,0,0,0,0,0,14,-41,-12,-50,-45,-42,-45,-47,-44,-57,-53,-68,-66,-70,-45,-56,-49,-50,0,9,883,871,872,905,902,864,1780,695,2450,2426,29991,29992,29994,29991,29994,29995,29995,29996,29998,1245]} 1. e4 {[%emt 0:00:08]} c5 {[%emt 0:00:05]} 2. Nf3 {[%emt 0:00:13]} d6 {[%emt 0:00:04]} 3. Bb5+ {[%emt 0:00:50]} Bd7 {[%emt 0:00:04]} 4. Bxd7+ {[%emt 0:00:09]} Nxd7 {[%emt 0:00:06]} 5. O-O {[%emt 0:01:16]} Ngf6 {[%emt 0:00:02]} 6. Qe2 {[%emt 0:03:58]} e6 {[%emt 0:00:05]} 7. c4 {[%emt 0:06:51]} Be7 {[%emt 0:00:57]} 8. Nc3 {[%emt 0:00:40]} a6 {[%emt 0:02:46]} 9. b3 {[%emt 0:03:59]} Ne5 {[%emt 0:00:18]} 10. Rd1 {[%emt 0:03:51]} Qa5 {[%emt 0:09:19]} 11. Bb2 {[%emt 0:02:55]} O-O {[%emt 0:13:45]} 12. d4 {[%emt 0:03:23] B52: Sicilian: Moscow Variation with 3...Bd7.} Nxf3+ {[%emt 0:01:36]} 13. Qxf3 {[%emt 0:00:25] [#] Strongly threatening e5.} cxd4 {[%emt 0:02:05]} 14. Rxd4 {[%emt 0:00:16] The position is equal.} Rfc8 {[%emt 0:02:01] [#]} 15. Re1 $146 {[%emt 0:17:03]} (15. Rdd1 $11) ({Predecessor:} 15. a4 Qb6 16. Qd1 Ne8 17. a5 Qc7 18. Rd3 b6 19. axb6 Qxb6 20. Ba3 Bf6 21. Na4 {½-½ (28) Nicevski,R (2345)-Semkov,S (2460) Nimes 1991}) 15... Ne8 {[%emt 0:07:34]} 16. Rd3 {[%emt 0:13:42]} b5 {[%emt 0:05:54]} 17. cxb5 {[%emt 0:11:13]} axb5 {[%emt 0:00:38]} 18. e5 {[%emt 0:01:53]} d5 {[%emt 0:02:50]} 19. Red1 {[%emt 0:03:12]} Bb4 {[%emt 0:12:02]} 20. a4 {[%emt 0:01:13]} bxa4 {[%emt 0:08:20]} 21. Nxa4 {[%emt 0:00:19]} Rc6 {[%emt 0:02:06]} 22. h4 {[%emt 0:00:58]} Nc7 {[%emt 0:10:37]} 23. h5 {[%emt 0:00:55]} Nb5 {[%emt 0:05:18]} (23... Bf8 $15) 24. h6 $1 $11 {[%emt 0:02:56]} gxh6 {[%emt 0:06:24][%mdl 8192] Black cannot hold the game after this.} ({Don't take} 24... Bf8 25. hxg7 Bxg7 26. Qh5 $16) (24... Be7 $11) 25. Qf6 $18 {[%emt 0:01:47]} Kf8 {[%emt 0:01:28]} 26. Rf3 {[%emt 0:02:09][%csl Gf3][%cal Rf6f7] [#]} Rc7 {[%emt 0:03:53]} 27. Qxe6 {[%emt 0:01:27] aiming for Bc1.} ({Weaker is} 27. Qh8+ Ke7 28. Qxh7 Rf8 29. Qxh6 Ke8 $16) 27... Qa6 {[%emt 0:02:37]} 28. Qxd5 {[%emt 0:01:14]} (28. Nb6 $142) 28... Re7 {[%emt 0:00:53]} 29. Qe4 {[%emt 0:01:40][%csl LRb4,LRh7]} Ba3 {[%emt 0:00:34]} 30. Qxh7 {[%emt 0:00:52][%cal Rh7h8] White mates.} Rc7 {[%emt 0:00:35]} 31. Rf6 {[%emt 0:01:46]} Qa7 {[%emt 0:00:33]} 32. Bxa3+ {[%emt 0:01:56]} Nxa3 {[%emt 0:00:08]} 33. e6 {[%emt 0:00:28]} Re8 {[%emt 0:00:46]} 34. Qh8+ {[%emt 0:00:43] Weighted Error Value: White=0.33/Black=0.42} (34. e7+ $142 Rcxe7 35. Qh8#) 1-0